[Event "2. Itzehoer Schach Open"]
[Site "Itzehoe, Germany"]
[Date "2023.04.30"]
[Round "4.8"]
[White "Martin, Dennis"]
[Black "Freitag, Christian"]
[Result "1/2-1/2"]
[TimeControl "90 min / 40 Züge + 30 min + 30 Sek pro Zug"]
[WhiteElo "2012"]
[BlackElo "1886"]

1. d4 {[%clk 01:30:58]} {[%emt 00:00:01]} d5 {[%clk 01:30:53]} {[%emt
00:00:07]} 2. c4 {[%clk 01:31:25]} {[%emt 00:00:04]} e6 {[%clk 01:31:18]}
{[%emt 00:00:04]} 3. Nf3 {[%clk 01:31:46]} {[%emt 00:00:09]} Nf6 {[%clk
01:31:35]} {[%emt 00:00:13]} 4. g3 {[%clk 01:32:15]} {[%emt 00:00:02]} Be7
{[%clk 01:31:11]} {[%emt 00:00:54]} 5. Bg2 {[%clk 01:32:41]} {[%emt 00:00:03]}
O-O {[%clk 01:31:27]} {[%emt 00:00:14]} 6. O-O {[%clk 01:33:01]} {[%emt
00:00:11]} c6 {[%clk 01:31:35]} {[%emt 00:00:22]} 7. Nbd2 {[%clk 01:33:14]}
{[%emt 00:00:16]} h6 {[%clk 01:31:42]} {[%emt 00:00:23]} 8. Qc2 {[%clk
01:33:39]} {[%emt 00:00:05]} Re8 {[%clk 01:31:21]} {[%emt 00:00:52]} 9. Rd1
{[%clk 01:34:04]} {[%emt 00:00:04]} Nbd7 {[%clk 01:31:02]} {[%emt 00:00:49]} 10.
e4 {[%clk 01:34:04]} {[%emt 00:00:30]} dxe4 {[%clk 01:30:52]} {[%emt 00:00:40]}
11. Nxe4 {[%clk 01:34:32]} {[%emt 00:00:03]} Nxe4 {[%clk 01:31:04]} {[%emt
00:00:18]} 12. Qxe4 {[%clk 01:34:59]} {[%emt 00:00:02]} Qc7 {[%clk 01:27:42]}
{[%emt 00:03:52]} 13. Ne5 {[%clk 01:28:31]} {[%emt 00:06:58]} Nxe5 {[%clk
01:24:17]} {[%emt 00:03:55]} 14. dxe5 {[%clk 01:27:52]} {[%emt 00:01:10]} Bd7
{[%clk 01:23:06]} {[%emt 00:01:41]} 15. Be3 {[%clk 01:25:41]} {[%emt 00:02:40]}
Rad8 {[%clk 01:19:18]} {[%emt 00:04:18]} 16. Bf1 {[%clk 01:20:46]} {[%emt
00:05:25]} Bf8 {[%clk 01:13:49]} {[%emt 00:06:00]} 17. Bd3 {[%clk 01:17:43]}
{[%emt 00:03:32]} g6 {[%clk 01:13:38]} {[%emt 00:00:42]} 18. h4 {[%clk
01:18:10]} {[%emt 00:00:02]} c5 {[%clk 01:11:52]} {[%emt 00:02:16]} 19. Bf4
{[%clk 01:13:11]} {[%emt 00:05:28]} Bc6 {[%clk 01:09:53]} {[%emt 00:02:31]} 20.
Qe3 {[%clk 01:12:19]} {[%emt 00:01:21]} b6 {[%clk 01:01:18]} {[%emt 00:09:05]}
21. f3 {[%clk 01:01:12]} {[%emt 00:11:37]} Bg7 {[%clk 00:59:29]} {[%emt
00:02:19]} 22. Bc2 {[%clk 00:59:38]} {[%emt 00:02:03]} g5 {[%clk 00:43:44]}
{[%emt 00:16:17]} 23. Rxd8 {[%clk 00:55:56]} {[%emt 00:04:12]} Rxd8 {[%clk
00:37:32]} {[%emt 00:06:41]} 24. hxg5 {[%clk 00:56:24]} {[%emt 00:00:02]} hxg5
{[%clk 00:37:54]} {[%emt 00:00:08]} 25. Bxg5 {[%clk 00:56:37]} {[%emt
00:00:16]} Rd4 {[%clk 00:38:09]} {[%emt 00:00:16]} 26. Re1 {[%clk 00:41:50]}
{[%emt 00:15:17]} f6 {[%clk 00:23:04]} {[%emt 00:15:35]} 27. Bh4 {[%clk
00:28:40]} {[%emt 00:13:40]} Qxe5 {[%clk 00:20:40]} {[%emt 00:02:54]} 28. Qxe5
{[%clk 00:27:57]} {[%emt 00:01:13]} fxe5 {[%clk 00:21:04]} {[%emt 00:00:06]} 29.
Kf2 {[%clk 00:27:57]} {[%emt 00:00:30]} Rxc4 {[%clk 00:10:55]} {[%emt
00:10:39]} 30. Bb3 {[%clk 00:27:32]} {[%emt 00:00:55]} Rd4 {[%clk 00:11:17]}
{[%emt 00:00:08]} 31. Bxe6+ {[%clk 00:27:24]} {[%emt 00:00:37]} Kf8 {[%clk
00:11:42]} {[%emt 00:00:06]} 32. Bg5 {[%clk 00:24:30]} {[%emt 00:03:24]} e4
{[%clk 00:08:34]} {[%emt 00:03:39]} 33. fxe4 {[%clk 00:20:36]} {[%emt
00:04:23]} Rxe4 {[%clk 00:08:02]} {[%emt 00:01:01]} 34. Rxe4 {[%clk 00:21:03]}
{[%emt 00:00:04]} Bxe4 {[%clk 00:08:28]} {[%emt 00:00:03]} 35. b3 {[%clk
00:21:14]} {[%emt 00:00:19]} Bd4+ {[%clk 00:06:29]} {[%emt 00:02:30]} 36. Be3
{[%clk 00:21:17]} {[%emt 00:00:27]} Ke7 {[%clk 00:05:46]} {[%emt 00:01:13]} 37.
Bc4 {[%clk 00:20:52]} {[%emt 00:00:55]} Kf6 {[%clk 00:05:11]} {[%emt 00:01:05]}
38. Ke2 {[%clk 00:21:09]} {[%emt 00:00:13]} Bxe3 {[%clk 00:02:22]} {[%emt
00:03:20]} 39. Kxe3 {[%clk 00:21:36]} {[%emt 00:00:02]} Ke5 {[%clk 00:02:00]}
{[%emt 00:00:51]} 40. Bd3 {[%clk 00:20:07]} {[%emt 00:01:59]} Bc6 {[%clk
00:00:56]} {[%emt 00:01:34]} 41. a4 {[%clk 00:14:08]} {[%emt 00:06:28]} Bd7
{[%clk 00:30:25]} {[%emt 00:01:03]} 42. Kf3 {[%clk 00:35:25]} {[%emt 00:09:12]}
Kd4 {[%clk 00:20:08]} {[%emt 00:10:47]} 43. Bc4 {[%clk 00:35:47]} {[%emt
00:00:08]} Bxa4 {[%clk 00:18:15]} {[%emt 00:02:23]} 44. g4 {[%clk 00:35:11]}
{[%emt 00:01:06]} Bc6+ {[%clk 00:15:27]} {[%emt 00:03:18]} 45. Kf4 {[%clk
00:35:37]} {[%emt 00:00:03]} b5 {[%clk 00:14:07]} {[%emt 00:01:50]} 46. Be6
{[%clk 00:34:55]} {[%emt 00:01:12]} c4 {[%clk 00:14:05]} {[%emt 00:00:33]} 47.
bxc4 {[%clk 00:34:21]} {[%emt 00:01:04]} bxc4 {[%clk 00:14:30]} {[%emt
00:00:05]} 48. g5 {[%clk 00:29:46]} {[%emt 00:05:05]} Be8 {[%clk 00:08:21]}
{[%emt 00:06:40]} 49. Kf3 {[%clk 00:29:57]} {[%emt 00:00:18]} Kd3 {[%clk
00:07:48]} {[%emt 00:01:03]} 50. Bf5+ {[%clk 00:30:14]} {[%emt 00:00:13]} Kd2
{[%clk 00:07:50]} {[%emt 00:00:29]} 51. Ke4 {[%clk 00:30:17]} {[%emt 00:00:27]}
Kc3 {[%clk 00:05:49]} {[%emt 00:02:32]} 52. Kd5 {[%clk 00:28:16]} {[%emt
00:02:29]} Kb4 {[%clk 00:05:07]} {[%emt 00:01:12]} 53. Kd4 {[%clk 00:28:31]}
{[%emt 00:00:15]} a5 {[%clk 00:05:27]} {[%emt 00:00:11]} 54. g6 {[%clk
00:28:12]} {[%emt 00:00:49]} Bxg6 {[%clk 00:04:54]} {[%emt 00:01:03]} 55. Bxg6
{[%clk 00:28:40]} {[%emt 00:00:01]} a4 {[%clk 00:03:55]} {[%emt 00:01:29]} 56.
Bf7 {[%clk 00:26:19]} {[%emt 00:02:51]} c3 {[%clk 00:04:16]} {[%emt 00:00:11]}
57. Kd3 {[%clk 00:26:37]} {[%emt 00:00:11]} a3 {[%clk 00:02:30]} {[%emt
00:02:16]} 1/2-1/2

[Event "2. Itzehoer Schach Open"]
[Site "Itzehoe, Germany"]
[Date "2023.04.30"]
[Round "4.32"]
[White "Knudsen, Max Leon"]
[Black "Schindehuette, Frank"]
[Result "0-1"]
[TimeControl "90 min / 40 Züge + 30 min + 30 Sek pro Zug"]
[WhiteElo "931"]
[BlackElo "1575"]

1. e4 {[%clk 01:30:59]} {[%emt 00:00:01]} d5 {[%clk 01:30:57]} {[%emt
00:00:03]} 2. exd5 {[%clk 01:31:21]} {[%emt 00:00:08]} Nf6 {[%clk 01:31:24]}
{[%emt 00:00:03]} 3. Bc4 {[%clk 01:31:27]} {[%emt 00:00:22]} Bf5 {[%clk
01:31:44]} {[%emt 00:00:11]} 4. Nf3 {[%clk 01:31:00]} {[%emt 00:00:56]} Nxd5
{[%clk 01:31:54]} {[%emt 00:00:22]} 5. Bxd5 {[%clk 01:31:18]} {[%emt 00:00:12]}
Qxd5 {[%clk 01:32:20]} {[%emt 00:00:03]} 6. Nc3 {[%clk 01:31:27]} {[%emt
00:00:21]} Qe6+ {[%clk 01:31:25]} {[%emt 00:01:26]} 7. Ne2 {[%clk 01:31:12]}
{[%emt 00:00:44]} Qg6 {[%clk 01:30:25]} {[%emt 00:01:30]} 8. Nf4 {[%clk
01:30:53]} {[%emt 00:00:49]} Qb6 {[%clk 01:28:00]} {[%emt 00:02:55]} 9. Nd5
{[%clk 01:30:05]} {[%emt 00:01:17]} Qc6 {[%clk 01:25:31]} {[%emt 00:03:00]} 10.
Nb4 {[%clk 01:29:46]} {[%emt 00:00:50]} Qe4+ {[%clk 01:25:08]} {[%emt
00:00:53]} 11. Qe2 {[%clk 01:29:33]} {[%emt 00:00:42]} Qxb4 {[%clk 01:25:21]}
{[%emt 00:00:17]} 12. O-O {[%clk 01:26:35]} {[%emt 00:00:41]} Bxc2 {[%clk
01:25:18]} {[%emt 00:03:20]} 13. Qe5 {[%clk 01:25:58]} {[%emt 00:01:06]} Qd6
{[%clk 01:24:18]} {[%emt 00:01:31]} 14. Qc3 {[%clk 01:25:09]} {[%emt 00:01:18]}
Bg6 {[%clk 01:23:44]} {[%emt 00:01:05]} 15. Nd4 {[%clk 01:24:42]} {[%emt
00:00:57]} a6 {[%clk 01:21:43]} {[%emt 00:02:31]} 16. b4 {[%clk 01:24:40]}
{[%emt 00:00:30]} Nc6 {[%clk 01:20:04]} {[%emt 00:02:11]} 17. b5 {[%clk
01:24:52]} {[%emt 00:00:18]} Nxd4 {[%clk 01:20:13]} {[%emt 00:00:21]} 18. Ba3
{[%clk 01:24:24]} {[%emt 00:00:57]} Ne2+ {[%clk 01:18:20]} {[%emt 00:02:24]} 19.
Kh1 {[%clk 01:24:38]} {[%emt 00:00:15]} Nxc3 {[%clk 01:18:35]} {[%emt
00:00:16]} 20. Bxd6 {[%clk 01:24:56]} {[%emt 00:00:11]} Nxb5 {[%clk 01:16:40]}
{[%emt 00:02:26]} 21. Bg3 {[%clk 01:24:23]} {[%emt 00:00:58]} e6 {[%clk
01:16:17]} {[%emt 00:00:57]} 22. a4 {[%clk 01:24:31]} {[%emt 00:00:23]} Nd6
{[%clk 01:16:29]} {[%emt 00:00:18]} 23. Bxd6 {[%clk 01:24:36]} {[%emt
00:00:25]} Bxd6 {[%clk 01:16:47]} {[%emt 00:00:12]} 24. d3 {[%clk 01:24:53]}
{[%emt 00:00:13]} Bxd3 {[%clk 01:17:02]} {[%emt 00:00:14]} 25. Rab1 {[%clk
01:24:42]} {[%emt 00:00:40]} Bxb1 {[%clk 01:17:18]} {[%emt 00:00:14]} 26. Rxb1
{[%clk 01:24:59]} {[%emt 00:00:13]} b5 {[%clk 01:17:12]} {[%emt 00:00:36]} 27.
axb5 {[%clk 01:25:13]} {[%emt 00:00:16]} axb5 {[%emt 00:00:20]} 28. h4 {[%clk
01:25:28]} {[%emt 00:00:02]} O-O {[%clk 01:17:25]} {[%emt 00:00:41]} 29. g3
{[%clk 01:25:42]} {[%emt 00:00:16]} b4 {[%clk 01:17:40]} {[%emt 00:00:16]} 30.
Re1 {[%clk 01:25:07]} {[%emt 00:01:04]} Ra2 {[%clk 01:17:40]} {[%emt 00:00:31]}
31. Re3 {[%clk 01:23:27]} {[%emt 00:02:09]} Rxf2 {[%clk 01:17:28]} {[%emt
00:00:43]} 32. Rb3 {[%clk 01:23:31]} {[%emt 00:00:25]} Ra8 {[%clk 01:17:32]}
{[%emt 00:00:26]} 33. Kg1 {[%clk 01:23:43]} {[%emt 00:00:18]} Bc5 {[%clk
01:16:32]} {[%emt 00:01:31]} 34. Rd3 {[%clk 01:23:28]} {[%emt 00:00:44]} Ra1+
{[%clk 01:16:49]} {[%emt 00:00:13]} 35. Rd1 {[%clk 01:23:32]} {[%emt 00:00:25]}
Rxd1# {[%clk 01:17:14]} {[%emt 00:00:05]} 0-1

[Event "2. Itzehoer Schach Open"]
[Site "Itzehoe, Germany"]
[Date "2023.04.30"]
[Round "4.14"]
[White "Pitic, Alen"]
[Black "Trzcielinski, Jens"]
[Result "0-1"]
[TimeControl "90 min / 40 Züge + 30 min + 30 Sek pro Zug"]
[WhiteElo "1276"]
[BlackElo "1693"]

1. d4 {[%clk 01:30:58]} {[%emt 00:00:01]} f5 {[%clk 01:30:45]} {[%emt
00:00:16]} 2. c4 {[%clk 01:31:07]} {[%emt 00:00:21]} g6 {[%clk 01:30:46]}
{[%emt 00:00:29]} 3. Nf3 {[%clk 01:31:14]} {[%emt 00:00:23]} Nf6 {[%clk
01:31:07]} {[%emt 00:00:09]} 4. g3 {[%clk 01:31:16]} {[%emt 00:00:28]} Bg7
{[%clk 01:31:23]} {[%emt 00:00:14]} 5. Bg2 {[%clk 01:31:09]} {[%emt 00:00:36]}
O-O {[%clk 01:31:42]} {[%emt 00:00:11]} 6. O-O {[%clk 01:31:15]} {[%emt
00:00:25]} d6 {[%clk 01:31:37]} {[%emt 00:00:35]} 7. Nc3 {[%clk 01:30:31]}
{[%emt 00:01:13]} c6 {[%clk 01:31:42]} {[%emt 00:00:26]} 8. Bg5 {[%clk
01:30:13]} {[%emt 00:00:48]} Qe8 {[%clk 01:31:14]} {[%emt 00:00:57]} 9. Qc1
{[%clk 01:29:10]} {[%emt 00:01:33]} e5 {[%clk 01:29:30]} {[%emt 00:02:15]} 10.
dxe5 {[%clk 01:25:46]} {[%emt 00:03:54]} dxe5 {[%clk 01:29:51]} {[%emt
00:00:09]} 11. Bxf6 {[%clk 01:25:42]} {[%emt 00:00:33]} Bxf6 {[%clk 01:29:19]}
{[%emt 00:01:03]} 12. e4 {[%clk 01:25:58]} {[%emt 00:00:15]} Qe7 {[%clk
01:26:52]} {[%emt 00:02:56]} 13. Rd1 {[%clk 01:24:44]} {[%emt 00:01:44]} Na6
{[%clk 01:25:44]} {[%emt 00:01:38]} 14. Qe3 {[%clk 01:21:51]} {[%emt 00:03:22]}
Bg7 {[%clk 01:22:49]} {[%emt 00:03:26]} 15. b3 {[%clk 01:19:06]} {[%emt
00:03:16]} f4 {[%clk 01:20:44]} {[%emt 00:02:34]} 16. Qd2 {[%clk 01:18:58]}
{[%emt 00:00:37]} fxg3 {[%clk 01:19:31]} {[%emt 00:01:44]} 17. hxg3 {[%clk
01:19:12]} {[%emt 00:00:16]} Bg4 {[%clk 01:19:36]} {[%emt 00:00:24]} 18. Qe3
{[%clk 01:16:45]} {[%emt 00:02:57]} Qf6 {[%clk 01:18:50]} {[%emt 00:01:17]} 19.
Rd3 {[%clk 01:15:49]} {[%emt 00:01:27]} Nb4 {[%clk 01:18:23]} {[%emt 00:00:57]}
20. Ne1 {[%clk 01:12:08]} {[%emt 00:04:09]} Nxd3 {[%clk 01:17:51]} {[%emt
00:01:03]} 21. Nxd3 {[%clk 01:12:29]} {[%emt 00:00:06]} b6 {[%clk 01:16:06]}
{[%emt 00:02:18]} 22. f3 {[%clk 01:11:30]} {[%emt 00:01:29]} Be6 {[%clk
01:15:18]} {[%emt 00:01:17]} 23. Rf1 {[%clk 01:10:42]} {[%emt 00:01:19]} Qd8
{[%clk 01:13:57]} {[%emt 00:01:51]} 24. Rd1 {[%clk 01:10:02]} {[%emt 00:01:10]}
Qc7 {[%clk 01:13:56]} {[%emt 00:00:31]} 25. Kf2 {[%clk 01:08:09]} {[%emt
00:02:23]} Rad8 {[%clk 01:12:54]} {[%emt 00:01:31]} 26. Rh1 {[%clk 01:04:37]}
{[%emt 00:04:02]} Rf7 {[%clk 01:12:07]} {[%emt 00:01:18]} 27. Na4 {[%clk
01:02:59]} {[%emt 00:02:08]} Rfd7 {[%clk 01:03:43]} {[%emt 00:08:54]} 28. Nab2
{[%clk 01:03:09]} {[%emt 00:00:20]} Bf8 {[%clk 00:59:12]} {[%emt 00:05:01]} 29.
Ke2 {[%clk 01:01:19]} {[%emt 00:02:20]} Ba3 {[%clk 00:59:06]} {[%emt 00:00:35]}
0-1

[Event "2. Itzehoer Schach Open"]
[Site "Itzehoe, Germany"]
[Date "2023.04.30"]
[Round "4.23"]
[White "Quiring, Nikolai"]
[Black "Aguike, Chidera"]
[Result "1-0"]
[TimeControl "90 min / 40 Züge + 30 min + 30 Sek pro Zug"]
[WhiteElo "1880"]
[BlackElo "1450"]

1. d4 {[%clk 01:30:59]} {[%emt 00:00:01]} Nf6 {[%clk 01:30:54]} {[%emt
00:00:06]} 2. c4 {[%clk 01:31:21]} {[%emt 00:00:07]} b6 {[%clk 01:31:22]}
{[%emt 00:00:03]} 3. Nc3 {[%clk 01:31:15]} {[%emt 00:00:35]} e6 {[%clk
01:31:38]} {[%emt 00:00:15]} 4. Qc2 {[%clk 01:31:18]} {[%emt 00:00:26]} Bb7
{[%clk 01:31:43]} {[%emt 00:00:25]} 5. e4 {[%clk 01:30:46]} {[%emt 00:01:01]}
Bb4 {[%clk 01:30:54]} {[%emt 00:01:20]} 6. Bd3 {[%clk 01:31:01]} {[%emt
00:00:15]} Bxc3+ {[%clk 01:31:00]} {[%emt 00:00:25]} 7. bxc3 {[%clk 01:31:23]}
{[%emt 00:00:07]} c5 {[%clk 01:30:47]} {[%emt 00:00:43]} 8. Ne2 {[%clk
01:31:03]} {[%emt 00:00:49]} d5 {[%clk 01:29:08]} {[%emt 00:02:11]} 9. cxd5
{[%clk 01:29:59]} {[%emt 00:01:33]} exd5 {[%clk 01:29:03]} {[%emt 00:00:36]} 10.
Bb5+ {[%clk 01:28:38]} {[%emt 00:01:50]} Nbd7 {[%clk 01:27:07]} {[%emt
00:02:26]} 11. e5 {[%clk 01:28:31]} {[%emt 00:00:37]} Ne4 {[%clk 01:25:04]}
{[%emt 00:02:34]} 12. f3 {[%clk 01:28:17]} {[%emt 00:00:43]} Ng5 {[%clk
01:24:20]} {[%emt 00:01:14]} 13. O-O {[%clk 01:25:02]} {[%emt 00:03:45]} Ne6
{[%clk 01:23:22]} {[%emt 00:01:27]} 14. f4 {[%clk 01:24:33]} {[%emt 00:01:00]}
c4 {[%clk 01:22:04]} {[%emt 00:01:49]} 15. f5 {[%clk 01:21:32]} {[%emt
00:03:30]} Nc7 {[%clk 01:21:53]} {[%emt 00:00:41]} 16. Bxd7+ {[%clk 01:19:52]}
{[%emt 00:02:11]} Qxd7 {[%clk 01:22:13]} {[%emt 00:00:09]} 17. Bg5 {[%clk
01:18:41]} {[%emt 00:01:40]} O-O {[%clk 01:21:29]} {[%emt 00:01:15]} 18. Ng3
{[%clk 01:17:02]} {[%emt 00:02:10]} Rfe8 {[%clk 01:20:04]} {[%emt 00:01:53]} 19.
Nh5 {[%clk 01:16:46]} {[%emt 00:00:46]} Qc6 {[%clk 01:17:47]} {[%emt 00:02:49]}
20. Qd2 {[%clk 01:11:26]} {[%emt 00:05:49]} Bc8 {[%clk 01:16:23]} {[%emt
00:01:53]} 21. Bf6 {[%clk 01:11:00]} {[%emt 00:00:56]} gxf6 {[%clk 01:16:15]}
{[%emt 00:00:39]} 22. Qh6 {[%clk 01:11:02]} {[%emt 00:00:27]} 1-0

[Event "2. Itzehoer Schach Open"]
[Site "Itzehoe, Germany"]
[Date "2023.04.30"]
[Round "4.26"]
[White "Haertel, Leon"]
[Black "Carsten, Juergen"]
[Result "0-1"]
[TimeControl "90 min / 40 Züge + 30 min + 30 Sek pro Zug"]
[WhiteElo "1323"]
[BlackElo "1780"]

1. d4 {[%clk 01:30:59]} {[%emt 00:00:01]} d5 {[%clk 01:29:56]} {[%emt
00:01:04]} 2. c4 {[%clk 01:31:22]} {[%emt 00:00:07]} e6 {[%clk 01:30:06]}
{[%emt 00:00:20]} 3. Nc3 {[%clk 01:31:43]} {[%emt 00:00:09]} c6 {[%clk
01:30:20]} {[%emt 00:00:16]} 4. cxd5 {[%clk 01:32:05]} {[%emt 00:00:08]} exd5
{[%clk 01:30:06]} {[%emt 00:00:44]} 5. Bf4 {[%clk 01:32:20]} {[%emt 00:00:15]}
Bf5 {[%clk 01:29:31]} {[%emt 00:01:05]} 6. e3 {[%clk 01:32:31]} {[%emt
00:00:19]} Nf6 {[%clk 01:26:09]} {[%emt 00:03:52]} 7. Bd3 {[%clk 01:31:41]}
{[%emt 00:01:20]} Bxd3 {[%clk 01:24:33]} {[%emt 00:02:06]} 8. Qxd3 {[%clk
01:31:57]} {[%emt 00:00:13]} Nh5 {[%clk 01:23:32]} {[%emt 00:01:32]} 9. Be5
{[%clk 01:31:55]} {[%emt 00:00:31]} Nd7 {[%clk 01:23:21]} {[%emt 00:00:43]} 10.
Nf3 {[%clk 01:32:09]} {[%emt 00:00:15]} Nxe5 {[%clk 01:20:44]} {[%emt
00:03:07]} 11. dxe5 {[%clk 01:31:55]} {[%emt 00:00:44]} g6 {[%clk 01:20:33]}
{[%emt 00:00:41]} 12. O-O {[%clk 01:31:54]} {[%emt 00:00:31]} Bb4 {[%clk
01:18:12]} {[%emt 00:02:51]} 13. a3 {[%clk 01:31:12]} {[%emt 00:01:12]} Ba5
{[%clk 01:17:18]} {[%emt 00:01:24]} 14. b4 {[%clk 01:30:46]} {[%emt 00:00:57]}
Bc7 {[%clk 01:17:28]} {[%emt 00:00:19]} 15. Rad1 {[%clk 01:30:31]} {[%emt
00:00:43]} Qe7 {[%clk 01:15:11]} {[%emt 00:02:46]} 16. Rfe1 {[%clk 01:21:17]}
{[%emt 00:09:48]} Rd8 {[%clk 01:07:18]} {[%emt 00:08:22]} 17. Qd4 {[%clk
01:20:29]} {[%emt 00:01:16]} Bb6 {[%clk 01:06:50]} {[%emt 00:01:00]} 18. Qd3
{[%clk 01:20:15]} {[%emt 00:00:44]} O-O {[%clk 01:06:07]} {[%emt 00:01:14]} 19.
Qc2 {[%clk 01:19:26]} {[%emt 00:01:18]} a5 {[%clk 00:59:13]} {[%emt 00:07:24]}
20. Qb3 {[%clk 01:17:51]} {[%emt 00:02:05]} axb4 {[%clk 00:59:03]} {[%emt
00:00:40]} 21. axb4 {[%clk 01:18:08]} {[%emt 00:00:13]} Ng7 {[%clk 00:56:13]}
{[%emt 00:03:20]} 22. b5 {[%clk 01:16:18]} {[%emt 00:02:20]} Ba7 {[%clk
00:50:27]} {[%emt 00:06:15]} 23. Nd4 {[%clk 00:57:53]} {[%emt 00:18:56]} Rc8
{[%clk 00:45:11]} {[%emt 00:05:46]} 24. f4 {[%clk 00:57:46]} {[%emt 00:00:36]}
Ne6 {[%clk 00:43:12]} {[%emt 00:02:30]} 25. b6 {[%clk 00:56:40]} {[%emt
00:01:36]} Bb8 {[%clk 00:41:20]} {[%emt 00:02:22]} 26. g3 {[%clk 00:56:28]}
{[%emt 00:00:42]} f6 {[%clk 00:38:40]} {[%emt 00:03:09]} 27. exf6 {[%clk
00:55:03]} {[%emt 00:01:56]} Rxf6 {[%clk 00:36:33]} {[%emt 00:02:37]} 28. e4
{[%clk 00:52:05]} {[%emt 00:03:28]} Nxd4 {[%clk 00:31:07]} {[%emt 00:05:56]} 29.
Rxd4 {[%clk 00:52:15]} {[%emt 00:00:20]} Qc5 {[%clk 00:26:44]} {[%emt
00:04:53]} 30. Qb4 {[%clk 00:52:03]} {[%emt 00:00:40]} Bd6 {[%clk 00:23:34]}
{[%emt 00:03:41]} 31. Na2 {[%clk 00:38:19]} {[%emt 00:14:14]} Ra8 {[%clk
00:20:33]} {[%emt 00:03:31]} 32. e5 {[%clk 00:37:38]} {[%emt 00:01:11]} Re6
{[%clk 00:20:31]} {[%emt 00:00:32]} 33. Rc1 {[%clk 00:37:22]} {[%emt 00:00:44]}
Qxc1+ {[%clk 00:19:36]} {[%emt 00:01:28]} 0-1

[Event "2. Itzehoer Schach Open"]
[Site "Itzehoe, Germany"]
[Date "2023.04.30"]
[Round "4.18"]
[White "Wusterack, Paul"]
[Black "Brandt, Volker"]
[Result "1-0"]
[TimeControl "90 min / 40 Züge + 30 min + 30 Sek pro Zug"]
[WhiteElo "1647"]
[BlackElo "1469"]

1. Nf3 {[%clk 01:27:06]} {[%emt 00:03:53]} e6 {[%clk 01:29:30]} {[%emt
00:01:31]} 2. g3 {[%clk 01:25:58]} {[%emt 00:01:38]} g5 {[%clk 01:29:52]}
{[%emt 00:00:08]} 3. d4 {[%clk 01:24:34]} {[%emt 00:01:54]} g4 {[%clk
01:30:07]} {[%emt 00:00:14]} 4. Nfd2 {[%clk 01:19:34]} {[%emt 00:05:30]} c5
{[%clk 01:29:23]} {[%emt 00:01:15]} 5. e3 {[%clk 01:14:08]} {[%emt 00:05:56]}
d5 {[%clk 01:29:41]} {[%emt 00:00:12]} 6. Bg2 {[%clk 01:01:46]} {[%emt
00:12:51]} h5 {[%clk 01:29:59]} {[%emt 00:00:13]} 7. b3 {[%clk 00:52:14]}
{[%emt 00:10:02]} cxd4 {[%clk 01:28:25]} {[%emt 00:02:03]} 8. exd4 {[%clk
00:51:25]} {[%emt 00:01:20]} Bg7 {[%clk 01:28:44]} {[%emt 00:00:11]} 9. Bb2
{[%clk 00:51:03]} {[%emt 00:00:53]} Nc6 {[%clk 01:29:04]} {[%emt 00:00:09]} 10.
c3 {[%clk 00:50:13]} {[%emt 00:01:20]} Qg5 {[%clk 01:23:30]} {[%emt 00:06:04]}
11. Nf1 {[%clk 00:47:16]} {[%emt 00:03:26]} Nge7 {[%clk 01:20:21]} {[%emt
00:03:39]} 12. Qd2 {[%clk 00:36:03]} {[%emt 00:11:44]} Qf6 {[%clk 01:19:44]}
{[%emt 00:01:07]} 13. Na3 {[%clk 00:34:56]} {[%emt 00:01:37]} a6 {[%clk
01:17:42]} {[%emt 00:02:32]} 14. Nc2 {[%clk 00:34:22]} {[%emt 00:01:04]} h4
{[%clk 01:15:41]} {[%emt 00:02:31]} 15. Nfe3 {[%clk 00:33:06]} {[%emt
00:01:46]} Qg6 {[%clk 01:13:26]} {[%emt 00:02:45]} 16. O-O-O {[%clk 00:29:46]}
{[%emt 00:03:50]} h3 {[%clk 01:13:41]} {[%emt 00:00:15]} 17. Bf1 {[%clk
00:29:59]} {[%emt 00:00:17]} Rh5 {[%clk 01:08:49]} {[%emt 00:05:22]} 18. Bd3
{[%clk 00:29:47]} {[%emt 00:00:43]} f5 {[%clk 01:08:09]} {[%emt 00:01:09]} 19.
Qe2 {[%clk 00:27:04]} {[%emt 00:03:13]} Qf6 {[%clk 01:03:17]} {[%emt 00:05:21]}
20. f3 {[%clk 00:25:23]} {[%emt 00:02:11]} e5 {[%clk 00:52:07]} {[%emt
00:11:41]} 21. fxg4 {[%clk 00:19:03]} {[%emt 00:06:50]} Rg5 {[%clk 00:50:46]}
{[%emt 00:01:50]} 22. dxe5 {[%clk 00:18:09]} {[%emt 00:01:25]} Nxe5 {[%clk
00:50:25]} {[%emt 00:00:50]} 23. Bxf5 {[%clk 00:17:11]} {[%emt 00:01:28]} Qc6
{[%clk 00:47:03]} {[%emt 00:03:53]} 24. Nd4 {[%clk 00:16:20]} {[%emt 00:01:21]}
Qh6 {[%clk 00:44:31]} {[%emt 00:03:02]} 25. Kb1 {[%clk 00:13:42]} {[%emt
00:03:09]} Bxf5+ {[%clk 00:40:38]} {[%emt 00:04:22]} 26. Nexf5 {[%clk
00:12:56]} {[%emt 00:01:15]} Qg6 {[%clk 00:40:33]} {[%emt 00:00:36]} 27. Ka1
{[%clk 00:11:00]} {[%emt 00:02:26]} Bf6 {[%clk 00:35:19]} {[%emt 00:05:43]} 28.
Nxe7 {[%clk 00:09:47]} {[%emt 00:01:44]} Bxe7 {[%clk 00:34:16]} {[%emt
00:01:33]} 29. Nf5 {[%clk 00:08:30]} {[%emt 00:01:47]} Nc6 {[%clk 00:32:33]}
{[%emt 00:02:13]} 30. Rhe1 {[%clk 00:08:13]} {[%emt 00:00:47]} Qh7 {[%clk
00:31:17]} {[%emt 00:01:45]} 31. Ba3 {[%clk 00:08:06]} {[%emt 00:00:38]} 1-0